bitfinex/quotes_BTCUSD_20220105
["timestamp","ask_amount","ask_price","bid_price","bid_amount"]
[1641373363008,0.39937,46602.0,46601.0,0.004]
[1641373363711,0.41437,46602.0,46601.0,0.004]
[1641373364912,0.39937,46602.0,46601.0,0.004]
[1641373365513,0.34937,46602.0,46601.0,0.004]
[1641373365713,0.36337,46602.0,46601.0,0.004]
[1641373365916,0.41337,46602.0,46601.0,0.004]
[1641373366953,0.39937,46602.0,46601.0,0.004]
[1641373367554,0.4008903,46602.0,46601.0,0.004]
[1641373367855,0.4138903,46602.0,46601.0,0.004]
[1641373368856,0.4008903,46602.0,46601.0,0.004]
[1641373369059,0.2115203,46602.0,46601.0,0.004]
[1641373369260,0.107343,46604.0,46601.0,0.15332293]
[1641373369261,0.00043251,46604.0,46601.0,0.15332293]
[1641373369464,0.165723,46628.0,46603.0,0.95778499]
[1641373369658,0.00122039,46625.0,46610.0,0.00128278]
[1641373369857,0.00122039,46625.0,46611.0,0.0481]
[1641373369858,0.87033634,46624.0,46611.0,0.0481]
[1641373370058,0.35049106,46620.0,46611.0,0.0481]
[1641373370312,0.053641,46617.0,46611.0,0.10174]
[1641373370507,0.107281,46620.0,46612.0,0.35528]
[1641373370708,0.21,46624.0,46616.0,0.00123314]
[1641373370906,0.21,46624.0,46617.0,0.0481]
[1641373371505,0.21,46624.0,46618.0,0.26515182]
[1641373371707,0.053637,46622.0,46619.0,0.10173257]
[1641373371907,0.053637,46622.0,46619.0,0.0481]
[1641373372208,0.053637,46622.0,46617.0,0.023]
[1641373372209,0.29282642,46622.0,46617.0,0.023]
[1641373372607,0.34282642,46622.0,46617.0,0.023]
[1641373373006,0.053647,46617.0,46611.0,0.3013]
[1641373373206,0.16094,46619.0,46611.0,0.60165533]
[1641373373406,0.16094,46619.0,46611.0,0.0481]
[1641373373610,0.16094,46619.0,46612.0,0.05364582]
[1641373373907,0.008,46619.0,46612.0,0.25013568]
[1641373374160,0.053646,46617.0,46612.0,0.25013568]
[1641373374357,0.31988471,46616.0,46612.0,0.25013568]
[1641373374656,0.31988471,46616.0,46611.0,0.0481]
[1641373376057,0.31988471,46616.0,46612.0,0.05364521]
[1641373376459,0.31988471,46616.0,46613.0,0.053645]
[1641373376659,0.31988471,46616.0,46612.0,0.05364521]
[1641373377259,0.32030877,46616.0,46612.0,0.05364521]
[1641373377660,0.32330877,46616.0,46612.0,0.05364521]
[1641373378112,0.32330877,46616.0,46613.0,0.053645]
[1641373378307,0.32330877,46616.0,46613.0,0.10728694]
[1641373378608,0.00118359,46615.0,46613.0,0.10728694]
[1641373379708,0.00418359,46615.0,46613.0,0.10728694]
[1641373380910,0.00118359,46615.0,46613.0,0.10728694]
[1641373381752,0.00518359,46615.0,46613.0,0.10728694]
[1641373382360,0.00518359,46615.0,46614.0,0.94528]
[1641373382657,0.00518359,46615.0,46614.0,0.35528]
[1641373383155,0.00118359,46615.0,46614.0,0.35528]
[1641373383959,0.00118359,46615.0,46614.0,0.40528]
[1641373385507,0.00118359,46615.0,46614.0,0.05]
[1641373385706,0.00118359,46615.0,46613.0,0.16092794]
[1641373386106,0.00118359,46615.0,46614.0,1.21528]
[1641373386308,0.00118359,46615.0,46614.0,0.35528]
[1641373387109,0.00118359,46615.0,46613.0,0.16092794]
[1641373387508,0.00118359,46615.0,46613.0,0.10728694]
[1641373387708,0.00818359,46615.0,46613.0,0.10728694]
[1641373387910,0.00818359,46615.0,46611.0,0.101747]
[1641373389161,0.00818359,46615.0,46613.0,0.10728701]
[1641373389360,0.00818359,46615.0,46614.0,1.70338]
[1641373389560,0.00118359,46615.0,46614.0,1.70338]
[1641373389758,0.00118359,46615.0,46614.0,0.40338]
[1641373389959,0.00118359,46615.0,46614.0,0.68771038]
[1641373390161,0.00018359,46615.0,46614.0,0.68771038]
[1641373390559,0.00018359,46615.0,46614.0,0.40338]
[1641373391461,0.00018359,46615.0,46614.0,0.66410562]
[1641373391962,0.00018359,46615.0,46614.0,0.72110562]
[1641373392360,0.00018359,46615.0,46614.0,0.46038]
[1641373392906,0.00018359,46615.0,46614.0,0.1051]
[1641373393106,0.00018359,46615.0,46614.0,0.0481]
[1641373394006,0.00018359,46615.0,46614.0,0.1051]
[1641373395006,0.00018359,46615.0,46614.0,0.0481]
[1641373395806,0.00018359,46615.0,46614.0,0.1041]
[1641373396664,0.00018359,46615.0,46614.0,0.056]
[1641373397057,0.00018359,46615.0,46606.0,2.1029681]
[1641373397360,0.31231012,46612.0,46606.0,0.9700681]
[1641373397562,0.31231012,46612.0,46606.0,0.9692681]
[1641373397563,0.00120279,46608.0,46606.0,0.9692681]
[1641373397759,1.56888664,46607.0,46606.0,0.9692681]
[1641373397961,0.00127014,46602.0,46601.0,0.004]
[1641373398157,0.66205951,46602.0,46601.0,0.004]
[1641373398359,0.89879562,46602.0,46601.0,0.004]
[1641373398560,1.30407562,46602.0,46601.0,0.004]
[1641373398958,1.30407562,46602.0,46601.0,0.01641395]
[1641373399159,1.35775162,46602.0,46601.0,0.01641395]
[1641373399561,1.12101551,46602.0,46601.0,0.01641395]
[1641373399761,0.486376,46602.0,46601.0,0.01641395]
[1641373399961,0.36528,46602.0,46601.0,0.01641395]
[1641373400408,0.36528,46602.0,46601.0,0.004]
[1641373400610,0.66067194,46602.0,46601.0,0.004]
[1641373401108,0.65067194,46602.0,46601.0,0.004]
[1641373401508,0.35653275,46602.0,46601.0,0.004]
[1641373401711,0.36728,46602.0,46601.0,0.004]
[1641373403008,0.35528,46602.0,46601.0,0.004]
[1641373403409,0.21,46602.0,46601.0,0.004]
[1641373403809,0.60928,46602.0,46601.0,0.004]
[1641373404460,0.6104639,46602.0,46601.0,0.004]
[1641373404656,0.2551839,46602.0,46601.0,0.004]
[1641373405057,0.2111839,46602.0,46600.0,0.27161855]
[1641373405256,0.2111839,46602.0,46599.0,0.053654]
[1641373405456,0.2111839,46602.0,46599.0,0.155407]
[1641373405857,0.2111839,46602.0,46600.0,0.05365511]
[1641373406461,0.2111839,46602.0,46601.0,1.60637771]
[1641373406660,0.2111839,46602.0,46601.0,2.06165771]
[1641373406861,0.2111839,46602.0,46601.0,2.15975771]
[1641373409511,0.2111839,46602.0,46601.0,2.00610671]
[1641373409712,0.2111839,46602.0,46601.0,1.95610671]
[1641373410110,0.2111839,46602.0,46601.0,2.00610671]
[1641373410511,0.2111839,46602.0,46601.0,2.10610671]
[1641373417713,0.2111839,46602.0,46601.0,0.70610671]
[1641373417908,0.2111839,46602.0,46601.0,0.65610671]
[1641373419959,0.2111839,46602.0,46601.0,0.0481]
[1641373421662,0.2111839,46602.0,46593.0,0.10731648]
[1641373421663,0.2111839,46602.0,46591.0,0.05330239]
[1641373421861,0.43330091,46599.0,46591.0,0.05330239]
[1641373422061,0.29803385,46597.0,46591.0,0.9755354]
[1641373422260,0.29803385,46597.0,46593.0,0.05366413]
[1641373423610,0.35169985,46597.0,46593.0,0.05366413]
[1641373423909,0.29803385,46597.0,46592.0,0.47]
[1641373424509,0.43330091,46599.0,46592.0,0.47]
[1641373424709,0.48696591,46599.0,46592.0,0.47]
[1641373425312,0.00041942,46598.0,46592.0,0.47]
[1641373426109,0.00041942,46598.0,46593.0,0.35528]
[1641373426565,0.00041942,46598.0,46594.0,0.10732306]
[1641373426764,0.00041942,46598.0,46595.0,0.40338]
[1641373427167,0.00041942,46598.0,46596.0,0.053654]
[1641373427366,0.2111839,46602.0,46597.0,1.65528]
[1641373427565,0.2111839,46602.0,46599.0,0.03415297]
[1641373427766,0.2111839,46602.0,46599.0,0.08780597]
[1641373427965,0.2111839,46602.0,46599.0,0.053653]
[1641373428168,0.2111839,46602.0,46600.0,0.05]
[1641373428365,0.2111839,46602.0,46600.0,0.35528]
[1641373428567,0.2111839,46602.0,46600.0,0.10365301]
[1641373428767,0.2111839,46602.0,46597.0,0.234656]
[1641373428965,0.2111839,46602.0,46597.0,0.081]
[1641373429566,0.2111839,46602.0,46597.0,0.031]
[1641373429767,0.2111839,46602.0,46595.0,0.0481]
[1641373429768,0.2111839,46602.0,46598.0,0.05365814]
[1641373429970,0.2111839,46602.0,46598.0,0.10731614]
[1641373430165,0.2111839,46602.0,46598.0,0.15731614]
[1641373430823,0.2111839,46602.0,46599.0,0.05365627]
[1641373431022,0.31294423,46600.0,46599.0,0.05365627]
[1641373431223,0.31294423,46600.0,46597.0,0.029]
[1641373431420,0.2111839,46602.0,46597.0,0.029]
[1641373431621,0.2111839,46602.0,46595.0,0.0981]
[1641373431820,0.2111839,46602.0,46597.0,0.071]
[1641373432020,0.2111839,46602.0,46598.0,0.05365777]
[1641373432921,0.2111839,46602.0,46597.0,0.121]
[1641373433121,0.20973031,46602.0,46597.0,0.121]
[1641373433325,0.21015626,46602.0,46597.0,0.121]
[1641373433921,0.21015626,46602.0,46598.0,0.053659]
[1641373434358,0.21015626,46602.0,46600.0,0.05365344]
[1641373435160,0.21015626,46602.0,46597.0,0.081]
[1641373435360,0.2505291,46598.0,46597.0,0.031]
[1641373435659,0.2505291,46598.0,46595.0,0.0481]
[1641373435861,0.2505291,46598.0,46597.0,0.071]
[1641373436560,0.21015626,46602.0,46597.0,0.071]
[1641373437361,0.21015626,46602.0,46598.0,0.053661]
[1641373437564,0.33145932,46601.0,46598.0,0.053661]
[1641373440311,0.20973031,46602.0,46598.0,0.053661]
[1641373440511,0.20973031,46602.0,46599.0,0.053658]
[1641373441567,0.20973031,46602.0,46600.0,0.0536555]
[1641373441762,0.20973031,46602.0,46600.0,0.1036555]
[1641373442662,0.20973031,46602.0,46600.0,0.1026555]
[1641373444968,0.20973031,46602.0,46598.0,0.053662]
[1641373445607,0.20973031,46602.0,46595.0,0.05]
[1641373445809,0.20973031,46602.0,46593.0,0.24918531]
[1641373446012,0.053666,46600.0,46590.0,0.43736823]
[1641373446210,0.053666,46600.0,46595.0,0.053665]
[1641373446407,0.21373031,46602.0,46595.0,0.053665]
[1641373446807,0.21373031,46602.0,46592.0,0.415]
[1641373447008,0.21373031,46602.0,46592.0,0.465]
[1641373447207,0.45873483,46602.0,46592.0,0.565]
[1641373447408,0.053663,46601.0,46594.0,0.05366256]
[1641373447607,0.45873483,46602.0,46593.0,0.107324]
[1641373448408,0.20973031,46602.0,46593.0,0.107324]
[1641373449053,0.053663,46601.0,46597.0,0.053663]
[1641373449453,0.053663,46601.0,46594.0,0.05]
[1641373449454,0.00042143,46600.0,46594.0,0.05]
[1641373449654,0.00042143,46600.0,46593.0,0.157324]
[1641373450255,0.00042143,46600.0,46593.0,0.40326184]
[1641373450456,0.00042143,46600.0,46597.0,0.053662]
[1641373450656,0.00145008,46599.0,46598.0,0.60133915]
[1641373450860,0.00145008,46599.0,46598.0,0.65133915]
[1641373451059,0.00145008,46599.0,46598.0,0.75133915]
[1641373451660,0.00145008,46599.0,46598.0,0.80499315]
[1641373451859,0.00145008,46599.0,46598.0,0.84199315]
[1641373453130,0.00145008,46599.0,46598.0,0.85864974]
[1641373453935,0.00145008,46599.0,46598.0,1.44764974]
[1641373454332,0.00145008,46599.0,46598.0,0.92764974]
[1641373455332,0.00145008,46599.0,46598.0,0.68159059]
[1641373455734,0.00145008,46599.0,46598.0,0.61259059]
[1641373455934,0.00145008,46599.0,46598.0,0.67959059]
[1641373457056,0.00145008,46599.0,46598.0,0.72769059]
[1641373457258,0.00145008,46599.0,46598.0,0.77893961]
[1641373457456,0.00145008,46599.0,46598.0,0.71193961]
[1641373457856,0.00145008,46599.0,46598.0,1.31323961]
[1641373458057,0.00345008,46599.0,46598.0,2.60381961]
[1641373458458,0.00308626,46599.0,46598.0,2.30283252]
[1641373458857,0.00308626,46599.0,46598.0,2.35283252]
[1641373459061,0.00308626,46599.0,46598.0,1.38381961]
[1641373459957,0.00308626,46599.0,46598.0,1.55581961]
[1641373461010,0.00308626,46599.0,46598.0,2.03581961]
[1641373461410,0.00108626,46599.0,46598.0,2.02681961]
[1641373461615,0.00108626,46599.0,46598.0,1.57181961]
[1641373461811,0.00108626,46599.0,46598.0,1.98181961]
[1641373462012,0.00108626,46599.0,46598.0,2.00981961]
[1641373462618,1.471e-05,46601.0,46600.0,0.41569683]
[1641373462817,1.471e-05,46601.0,46600.0,1.16907987]
[1641373463013,0.20854641,46602.0,46600.0,1.31324262]
[1641373463214,0.20854641,46602.0,46601.0,2.75739953]
[1641373463414,0.20854641,46602.0,46601.0,6.94884167]
[1641373463614,0.0048,46619.0,46602.0,1.3]
[1641373463815,0.0048,46619.0,46616.0,0.05363479]
[1641373464085,0.00128642,46626.0,46617.0,0.0481]
[1641373464287,0.0012648,46631.0,46618.0,0.0481]
[1641373464482,0.35528,46630.0,46619.0,0.0481]
[1641373464683,0.37236347,46627.0,46620.0,0.0481]
[1641373464884,0.37236347,46627.0,46623.0,0.05363139]
[1641373464885,0.13937,46626.0,46623.0,0.05363139]
[1641373465084,0.13937,46626.0,46624.0,0.0481]
[1641373465285,0.13937,46626.0,46616.0,0.00123902]
[1641373465286,0.05600093,46632.0,46625.0,0.0481]
[1641373465487,0.05600093,46632.0,46626.0,0.0481]
[1641373465685,0.05600093,46632.0,46621.0,0.60251751]
[1641373465686,0.27722085,46636.0,46627.0,0.0481]
[1641373465887,0.27722085,46636.0,46630.0,0.053623]
[1641373466086,0.27722085,46636.0,46631.0,0.0481]
[1641373466487,0.61343589,46636.0,46631.0,0.0481]
[1641373466891,0.21,46632.0,46631.0,0.0481]
[1641373467916,0.21,46632.0,46631.0,0.0501]
[1641373469117,0.21,46632.0,46631.0,0.0481]
[1641373469916,0.21,46632.0,46631.0,0.0501]
[1641373470316,0.21,46632.0,46631.0,0.1001]
[1641373470826,0.21,46632.0,46631.0,2.60544178]
[1641373471017,0.21,46632.0,46631.0,2.62373178]
[1641373471218,0.21,46632.0,46631.0,1.42173178]
[1641373471664,0.21,46632.0,46631.0,1.17422146]
[1641373471866,0.21,46632.0,46631.0,1.80422146]
[1641373472168,0.21,46632.0,46631.0,1.79093146]
[1641373472663,0.21,46632.0,46631.0,1.16093146]
[1641373473263,0.21,46632.0,46631.0,1.15593146]
[1641373474062,0.21,46632.0,46631.0,1.16093146]
[1641373475316,0.21,46632.0,46631.0,1.15593146]
[1641373475920,0.20634094,46632.0,46631.0,1.15593146]
[1641373476115,0.20634094,46632.0,46631.0,1.16093146]
[1641373476517,0.20752408,46632.0,46631.0,1.16093146]
[1641373477017,0.20752408,46632.0,46631.0,1.01093146]
[1641373477217,0.20752408,46632.0,46631.0,1.00593146]
[1641373477818,0.20752408,46632.0,46631.0,1.00468]
[1641373478019,0.20752408,46632.0,46631.0,1.00968]
[1641373479062,0.20752408,46632.0,46631.0,1.00868]
[1641373479261,0.20752408,46632.0,46631.0,1.00368]
[1641373480068,0.20752408,46632.0,46631.0,1.00868]
[1641373480962,0.20752408,46632.0,46631.0,0.6534]
[1641373481362,0.20752408,46632.0,46631.0,0.6484]
[1641373481963,0.20752408,46632.0,46631.0,0.6544]
[1641373483117,0.20752408,46632.0,46631.0,0.0471]
[1641373483622,0.20752408,46632.0,46628.0,0.053627]
[1641373484023,0.20752408,46632.0,46631.0,0.007]
[1641373484615,0.20752408,46632.0,46631.0,0.427]
[1641373484815,0.20752408,46632.0,46631.0,0.007]
[1641373485318,0.20752408,46632.0,46629.0,0.053626]
[1641373486116,0.20752408,46632.0,46630.0,0.0481]
[1641373486316,0.20752408,46632.0,46631.0,1.91365329]
[1641373486565,0.20752408,46632.0,46631.0,2.06296076]
[1641373486964,0.20752408,46632.0,46631.0,1.96296076]
[1641373487163,0.20752408,46632.0,46631.0,2.06296076]
[1641373487564,0.20752408,46632.0,46631.0,2.11296076]
[1641373487967,0.20752408,46632.0,46631.0,2.11996076]
[1641373488165,0.20752408,46632.0,46631.0,2.06996076]
[1641373488365,0.20752408,46632.0,46631.0,2.11996076]
[1641373489264,0.20752408,46632.0,46631.0,2.11296076]
[1641373490066,0.20752408,46632.0,46631.0,2.11896076]
[1641373490914,0.20752408,46632.0,46631.0,2.07086076]
[1641373491115,0.20752408,46632.0,46631.0,0.77086076]
[1641373491315,0.20752408,46632.0,46631.0,0.76486076]
[1641373491514,0.20752408,46632.0,46631.0,1.23486076]
[1641373491716,0.20752408,46632.0,46631.0,1.28296076]
[1641373492114,0.20752408,46632.0,46631.0,1.03258747]
[1641373492316,0.20752408,46632.0,46631.0,0.56258747]
[1641373492515,0.20752408,46632.0,46631.0,1.47258747]
[1641373492717,0.20752408,46632.0,46631.0,0.56258747]
[1641373493315,0.20752408,46632.0,46631.0,0.55458747]
[1641373493516,0.20752408,46632.0,46631.0,1.74835444]
[1641373493717,0.20752408,46632.0,46631.0,1.50458747]
[1641373494161,0.20752408,46632.0,46631.0,1.51458747]
[1641373494561,0.20752408,46632.0,46631.0,0.56458747]
[1641373494966,0.20752408,46632.0,46631.0,0.81392394]
[1641373495363,0.20752408,46632.0,46631.0,0.56458747]
[1641373495566,0.20752408,46632.0,46631.0,1.35458747]
[1641373496063,0.20752408,46632.0,46631.0,1.37858747]
[1641373497066,0.20752408,46632.0,46631.0,0.42858747]
[1641373497467,0.20752408,46632.0,46631.0,0.42738]
[1641373497666,0.20752408,46632.0,46631.0,0.0721]
[1641373497914,0.20752408,46632.0,46631.0,0.0481]
[1641373498114,0.20752408,46632.0,46631.0,0.1251]
[1641373499315,0.20752408,46632.0,46631.0,0.0481]
[1641373500017,0.20752408,46632.0,46631.0,0.52938]
[1641373500216,0.20752408,46632.0,46631.0,0.62938]
[1641373500417,0.20752408,46632.0,46631.0,1.38539881]
[1641373500718,0.20752408,46632.0,46631.0,1.38666356]
[1641373501317,0.20752408,46632.0,46631.0,1.31066356]
[1641373501975,0.20752408,46632.0,46631.0,1.32866356]
[1641373503376,0.20752408,46632.0,46631.0,1.31066356]
[1641373504077,0.20752408,46632.0,46631.0,1.32566356]
[1641373504877,0.20752408,46632.0,46631.0,1.07964475]
[1641373505077,0.20752408,46632.0,46631.0,1.3242675]
[1641373505313,0.20752408,46632.0,46631.0,1.3092675]
[1641373506114,0.20752408,46632.0,46631.0,1.3262675]
[1641373507222,0.48525648,46632.0,46631.0,0.017]
[1641373507422,0.48525648,46632.0,46627.0,0.0429]
[1641373507423,1.3,46631.0,46627.0,0.0429]
[1641373507621,0.27897347,46628.0,46627.0,0.0219]
[1641373507821,0.41015807,46628.0,46627.0,0.0219]
[1641373508021,0.063637,46628.0,46627.0,0.0219]
[1641373508220,0.75189826,46628.0,46627.0,0.0219]
[1641373508419,0.418917,46628.0,46627.0,0.0219]
[1641373508823,0.36528,46628.0,46627.0,0.0219]
[1641373509265,0.35528,46628.0,46627.0,0.0219]
[1641373509464,0.35655794,46628.0,46627.0,0.0219]
[1641373509864,0.00127794,46628.0,46627.0,0.0219]
[1641373510066,0.00827794,46628.0,46627.0,0.0219]
[1641373510865,0.36355794,46628.0,46627.0,0.0219]
[1641373511471,0.35655794,46628.0,46627.0,0.0219]
[1641373512065,0.36955794,46628.0,46627.0,0.0219]
[1641373513320,0.00109694,46628.0,46627.0,1.61815786]
[1641373513522,0.00109694,46628.0,46627.0,1.97472764]
[1641373513719,0.00109694,46628.0,46627.0,2.67602764]
[1641373513918,0.00109694,46628.0,46627.0,2.69108764]
[1641373514120,0.20634094,46632.0,46627.0,2.96095562]
[1641373514321,0.01235644,46639.0,46635.0,0.05359993]
[1641373514622,0.0003,46650.0,46644.0,0.00121967]
[1641373514821,0.0003,46648.0,46646.0,0.0012612]
[1641373515018,0.0003,46648.0,46647.0,1.70338]
[1641373515220,0.0001,46650.0,46648.0,1.3]
[1641373515419,0.0001,46650.0,46649.0,1.756969]
[1641373515619,0.0001,46650.0,46649.0,1.856969]
[1641373516020,0.0001,46650.0,46649.0,0.556969]
[1641373516222,0.0271,46650.0,46649.0,0.563969]
[1641373516667,0.0271,46650.0,46649.0,0.463969]
[1641373517064,0.0271,46650.0,46649.0,0.108689]
[1641373517466,0.0001,46650.0,46649.0,0.101689]
[1641373517863,0.0001,46650.0,46649.0,0.0481]
[1641373518263,0.2101,46650.0,46649.0,0.41738]
[1641373518962,0.2101,46650.0,46649.0,0.7134128]
[1641373519363,0.2101,46650.0,46649.0,0.6994128]
[1641373520163,0.2101,46650.0,46649.0,0.7124128]
[1641373520413,0.21128268,46650.0,46649.0,0.71715888]
[1641373520615,0.21128268,46650.0,46649.0,0.469976]
[1641373521516,0.21128268,46650.0,46649.0,0.569976]
[1641373521721,0.21038268,46650.0,46649.0,1.869976]
[1641373521915,0.0001,46651.0,46650.0,1.75]
[1641373522115,0.0003,46657.0,46651.0,1.3]
[1641373522316,0.0003,46657.0,46654.0,0.0535803]
[1641373522515,0.0003,46657.0,46655.0,0.39818]
[1641373522914,0.0003,46657.0,46655.0,0.54098]
[1641373523118,0.0003,46657.0,46655.0,0.59098]
[1641373523315,0.0003,46657.0,46655.0,0.698142]
[1641373523514,0.0003,46657.0,46656.0,0.09930765]
[1641373523716,0.0003,46657.0,46656.0,1.57818]
[1641373523915,0.0003,46657.0,46656.0,0.39818]
[1641373524164,0.0173,46657.0,46656.0,0.40318]
[1641373525569,0.0003,46657.0,46656.0,0.39818]
[1641373526269,0.0143,46657.0,46656.0,0.40418]
[1641373527470,0.0003,46657.0,46656.0,0.39818]
[1641373527670,0.2103,46657.0,46656.0,0.39818]
[1641373528316,0.2103,46657.0,46656.0,0.42918]
[1641373529015,0.0003,46657.0,46656.0,0.42918]
[1641373529418,0.0003,46657.0,46656.0,0.39818]
[1641373530216,0.0003,46657.0,46656.0,0.42018]
[1641373531417,0.0003,46657.0,46656.0,0.39818]
[1641373532075,0.0003,46657.0,46656.0,0.0429]
[1641373532270,0.0003,46657.0,46656.0,0.0739]
[1641373532670,0.0003,46657.0,46656.0,0.42918]
[1641373533472,0.0003,46657.0,46656.0,0.39818]
[1641373533675,0.0035,46659.0,46658.0,1.3]
[1641373533881,0.0004,46663.0,46658.0,2.24085083]
[1641373534074,0.0002,46664.0,46661.0,1.34946124]
[1641373534276,0.32070764,46679.0,46663.0,1.65649751]
[1641373534473,0.05633463,46680.0,46674.0,0.01393735]
[1641373534676,0.05633463,46680.0,46674.0,0.12176735]
[1641373534873,0.05633463,46680.0,46678.0,0.0857]
[1641373535417,0.320055,46679.0,46678.0,0.0857]
[1641373536319,0.358055,46679.0,46678.0,0.0917]
[1641373536520,0.713335,46679.0,46678.0,0.0917]
[1641373537520,0.675335,46679.0,46678.0,0.0857]
[1641373538119,0.695335,46679.0,46678.0,0.0857]
[1641373538522,0.715335,46679.0,46678.0,0.0857]
[1641373540266,0.727335,46679.0,46678.0,0.0857]
[1641373540466,0.40728,46679.0,46678.0,0.0857]
[1641373540868,0.052,46679.0,46678.0,0.0857]
[1641373541468,0.032,46679.0,46678.0,0.0857]
[1641373541669,0.02,46679.0,46678.0,0.0857]
[1641373541869,0.37528,46679.0,46678.0,0.0857]
[1641373542269,0.39528,46679.0,46678.0,0.0897]
[1641373543312,0.39528,46679.0,46678.0,0.08658164]
[1641373543513,0.37528,46679.0,46678.0,0.08258164]
[1641373544315,0.42328,46679.0,46678.0,0.08658164]
[1641373545516,0.42328,46679.0,46678.0,0.08258164]
[1641373545517,0.37528,46679.0,46678.0,0.08258164]
[1641373546216,0.39028,46679.0,46678.0,0.08758164]
[1641373547466,0.37528,46679.0,46678.0,0.08258164]
[1641373548264,0.42528,46679.0,46678.0,0.08758164]
[1641373549468,0.37528,46679.0,46678.0,0.08258164]
[1641373550319,0.42286,46679.0,46678.0,0.08858164]
[1641373550527,0.42286,46679.0,46678.0,0.111934]
[1641373550528,0.0482,46679.0,46678.0,0.111934]
[1641373551318,0.0482,46679.0,46678.0,0.0048]
[1641373551519,0.403126,46679.0,46678.0,0.0048]
[1641373552216,0.403126,46679.0,46678.0,0.006]
[1641373552217,0.374126,46679.0,46678.0,0.006]
[1641373553117,0.0192,46679.0,46678.0,0.006]
[1641373554070,0.0002,46679.0,46676.0,0.214269]
[1641373554270,0.0182,46679.0,46678.0,0.006]
[1641373556172,0.0002,46679.0,46676.0,0.160702]
[1641373556371,0.0072,46679.0,46678.0,0.014]
[1641373558218,0.0162,46679.0,46678.0,0.024]
[1641373558618,0.0362,46679.0,46678.0,0.019]
[1641373559819,0.0002,46679.0,46676.0,0.160702]
[1641373560619,0.0002,46679.0,46676.0,0.107134]
[1641373561318,0.0002,46679.0,46676.0,0.160701]
[1641373561777,0.0002,46679.0,46676.0,0.39860261]
[1641373561977,0.0002,46679.0,46676.0,0.160701]
[1641373562382,0.0002,46679.0,46676.0,0.171701]
[1641373563282,0.0002,46679.0,46676.0,0.118134]
[1641373563484,0.0002,46679.0,46676.0,0.107134]
[1641373564384,0.0002,46679.0,46676.0,0.057567]
[1641373564584,0.0002,46679.0,46676.0,0.004]
[1641373565426,0.31935178,46679.0,46676.0,0.004]
[1641373565626,0.31935178,46679.0,46674.0,0.053574]
[1641373565827,0.31935178,46679.0,46675.0,0.053574]
[1641373566827,0.31935178,46679.0,46675.0,0.107148]
[1641373567227,0.31935178,46679.0,46676.0,0.053573]
[1641373569676,0.354926,46678.0,46673.0,0.11961651]
[1641373569877,0.31935178,46679.0,46673.0,0.01246851]
[1641373570180,0.31935178,46679.0,46671.0,0.05]
[1641373570378,0.31935178,46679.0,46673.0,0.004]
[1641373570577,0.32237621,46677.0,46673.0,0.004]
[1641373570978,0.32237621,46677.0,46674.0,0.053574]
[1641373571180,0.32237621,46677.0,46675.0,0.053574]
[1641373571379,0.354926,46676.0,46675.0,0.053574]
[1641373572381,0.0002,46679.0,46675.0,0.060574]
[1641373572582,0.0002,46679.0,46675.0,0.114145]
[1641373572815,0.0002,46679.0,46676.0,0.053571]
[1641373573620,0.354926,46678.0,46673.0,0.053573]
[1641373574116,0.0002,46679.0,46673.0,0.053573]
[1641373574317,0.0002,46679.0,46673.0,0.058573]
[1641373574818,0.28685553,46674.0,46673.0,0.058573]
[1641373575618,0.28685553,46674.0,46673.0,0.053573]
[1641373575918,0.52803356,46674.0,46672.0,0.107148]
[1641373576318,0.28685553,46674.0,46673.0,0.012]
[1641373576571,0.053774,46679.0,46673.0,0.012]
[1641373576766,0.0002,46679.0,46673.0,0.007]
[1641373576966,0.0002,46679.0,46675.0,0.053572]
[1641373577367,0.00060355,46679.0,46675.0,0.053572]
[1641373578369,0.33237022,46679.0,46676.0,0.05357]
[1641373578569,0.354926,46678.0,46676.0,0.05357]
[1641373578769,0.00060355,46679.0,46676.0,0.05357]
[1641373579770,0.354926,46678.0,46676.0,0.05357]
[1641373580171,0.00060355,46679.0,46676.0,0.05357]
[1641373580420,0.00060355,46679.0,46676.0,0.05857]
[1641373580620,0.354926,46678.0,46676.0,0.05857]
[1641373580822,0.00060355,46679.0,46676.0,0.05857]
[1641373581620,0.00060355,46679.0,46675.0,0.107141]
[1641373581825,0.00060355,46679.0,46675.0,0.05357]
[1641373582422,0.00060355,46679.0,46675.0,0.05857]
[1641373583223,0.0002,46679.0,46676.0,0.05357]
[1641373584471,0.0002,46679.0,46676.0,0.05857]
[1641373585268,0.0002,46679.0,46676.0,0.005]
[1641373585672,0.0002,46679.0,46674.0,0.053567]
[1641373585871,0.0002,46679.0,46673.0,0.10713666]
[1641373586070,0.0002,46679.0,46669.0,0.15842449]
[1641373586272,0.0002,46679.0,46672.0,0.053569]
[1641373586573,0.0002,46679.0,46673.0,0.058568]
[1641373587271,0.0002,46679.0,46674.0,0.053567]
[1641373587472,0.0002,46679.0,46673.0,0.058569]
[1641373587671,0.0002,46679.0,46669.0,0.15842449]
[1641373588115,0.0002,46679.0,46670.0,0.354926]
[1641373588516,0.0002,46679.0,46673.0,0.053568]
[1641373588716,0.0002,46679.0,46674.0,0.05356788]
[1641373588919,0.0002,46679.0,46671.0,0.10713]
[1641373589124,0.0002,46679.0,46674.0,0.00123199]
[1641373589319,0.0002,46679.0,46675.0,0.354926]
[1641373589519,0.0002,46679.0,46676.0,0.0873064]
[1641373589723,0.0002,46679.0,46677.0,0.354926]
[1641373590322,0.0002,46679.0,46677.0,0.367926]
[1641373590722,0.0002,46679.0,46677.0,0.467926]
[1641373590923,0.0002,46679.0,46678.0,0.6729654]
[1641373591122,9.948e-05,46681.0,46680.0,1.06480705]
[1641373591320,9.948e-05,46681.0,46680.0,1.73652703]
[1641373591571,9.948e-05,46681.0,46680.0,0.55773305]
[1641373592372,0.00109948,46681.0,46680.0,1.24752703]
[1641373592570,0.00109948,46681.0,46680.0,0.97873305]
[1641373592969,0.00109948,46681.0,46680.0,0.86512641]
[1641373593768,9.948e-05,46681.0,46680.0,0.85412641]
[1641373593972,0.0004,46694.0,46683.0,1.3]
[1641373594171,0.0001,46684.0,46683.0,2.33172657]
[1641373594470,0.0001,46684.0,46683.0,2.40105068]